[Event "ITT 1st Parada Jamundi 2022"]
[Site "Jamundi Valle"]
[Date "2022.12.08"]
[Round "5.18"]
[White "Chavarro, Jeffry"]
[Black "Mata Zambrano, Luis Enrique"]
[Result "1/2-1/2"]
[ECO "D78"]
[WhiteElo "2020"]
[BlackElo "1544"]
[Annotator "TA"]
[PlyCount "81"]
[EventDate "2022.12.05"]
[EventType "swiss"]
[EventCountry "COL"]
[SourceTitle "playchess.com"]
[Source "ChessBase"]
[SourceQuality "1"]
[TimeControl "5400+30"]

{[%evp 12,81,20,32,31,6,9,-6,12,28,32,8,27,31,66,71,139,131,143,132,139,140,138,145,137,142,127,60,56,61,47,54,47,-9,-11,-57,-54,-56,0,0,28,0,102,99,99,99,96,93,97,37,186,186,169,181,170,151,150,164,155,0,142,129,170,170,163,0,143,0,142,59,47,39]} 1. d4 Nf6 2. Nf3 g6 3. g3 Bg7 4. Bg2 O-O 5. O-O d5 6. c4 c6 7. b3 {7.Nc3 is the modern continuation.} Qa5 {D78: Fianchetto Grünfeld: 6 0-0 c6.} 8. Bd2 Qa6 {[#]} 9. Ne5 $146 ({Predecessor:} 9. cxd5 cxd5 10. Ne5 Nc6 11. Nxc6 Qxc6 12. Bb4 Re8 13. Nc3 a5 14. Ba3 b5 15. Rc1 {½-½ (68) Drazic,S (2493)-Martinez Martin,D (2400) Calvia 2007}) 9... Rd8 {The position is equal.} 10. Bb4 Bf8 11. Nc3 Qb6 12. Bc5 Qc7 13. cxd5 cxd5 (13... Nxd5 $142 14. Nxd5 cxd5) 14. Nb5 $16 {[%csl LRa7,LRc7]} Qa5 15. a4 {Black must now prevent b4.} Re8 16. b4 Qd8 17. Bxa7 {White is much more active.} Bd7 {Prevents a5.} 18. Nxd7 Qxd7 19. Bxb8 (19. Bc5 $16) 19... Rexb8 $14 20. Qb3 Rc8 21. Rfc1 e6 22. Nc3 (22. Rc3 $14) 22... Rc4 $11 23. b5 (23. Nb5 $11) 23... Rxd4 $15 24. a5 Rc4 (24... Rb4 $15 25. Qd1 d4) 25. e3 $11 Ne8 26. a6 (26. Bf1 $5 {[%cal Rf1c4]} Rb4 27. Qa2 $11) 26... Nd6 {[#] Against e4} (26... bxa6 $11 27. bxa6 Nd6) 27. Bf1 $1 $16 Rc5 {[#]} 28. Na4 $1 Rxc1 29. Rxc1 {And now Nb6 would win.} Qd8 {Prevents Nb6.} 30. Nc5 (30. b6 $16) 30... b6 {Prevents a7.} ({Black should try} 30... bxa6 $14 31. Nxa6 Nc8) 31. Na4 $18 Rc8 32. Rxc8 Nxc8 33. Qc3 {Prevents Qc7.} Na7 34. Qd4 Nc8 35. Qc3 Na7 $1 36. h4 h5 37. Qd4 Nc8 38. Qc3 Na7 $1 39. Qd4 Nc8 40. a7 (40. e4 $16) 40... Nxa7 $14 41. Qxb6 {Weighted Error Value: White=0.27 (precise) /Black=0.20 (precise)} 1/2-1/2

[Event "ITT 1st Parada Jamundi 2022"]
[Site "Jamundi Valle"]
[Date "2022.12.08"]
[Round "5.19"]
[White "Gomez Saenz, Manuela"]
[Black "Borrero, Alexander"]
[Result "0-1"]
[ECO "B13"]
[WhiteElo "1479"]
[BlackElo "1988"]
[Annotator "TA"]
[PlyCount "50"]
[EventDate "2022.12.05"]
[EventType "swiss"]
[EventCountry "COL"]
[SourceTitle "playchess.com"]
[Source "ChessBase"]
[SourceQuality "1"]
[TimeControl "5400+30"]

{[%evp 18,50,0,0,25,-13,-7,-33,-22,-29,-29,-41,-31,-37,-26,-27,-27,-406,-397,-399,-410,-408,-394,-389,-315,-360,-370,-449,-407,-570,-573,-863,-866,-29986,-29987]} 1. e4 {[%emt 0:00:03]} c6 {[%emt 0:05:30]} 2. d4 {[%emt 0:00:44]} d5 {[%emt 0:00:12]} 3. exd5 {[%emt 0:01:03]} cxd5 {[%emt 0:00:05]} 4. Bd3 {[%emt 0:00:23]} Nf6 {[%emt 0:00:16]} 5. Bf4 {[%emt 0:01:34]} Qb6 {[%emt 0:02:16]} 6. b3 {[%emt 0:03:34]} Nc6 {[%emt 0:00:26]} 7. c3 {[%emt 0:00:51]} Bg4 {[%emt 0:02:50]} 8. Nf3 {[%emt 0:03:35]} e6 {[%emt 0:01:20]} 9. Nbd2 {[%emt 0:04:11]} Be7 {[%emt 0:01:20]} 10. O-O {[%emt 0:01:52]} Rc8 {[%emt 0:00:12] B13: Caro-Kann: Exchange Variation and Panov-Botvinnik Attack.} 11. Rc1 {[%emt 0:03:03]} O-O {[%emt 0:00:18]} 12. Qe1 {[%emt 0:02:20] [#]} Rfe8 $146 {[%emt 0:03:23] Black is slightly better.} (12... Nh5 $5 {[%cal Rh5f4]} 13. Qe3 Nxf4 14. Qxf4 Bh5 $11) ({Predecessor:} 12... Ba3 13. Rc2 Rfe8 14. Ne5 Bf5 15. Bxf5 exf5 16. Qb1 Bf8 17. Ndf3 Ne4 18. Nxc6 bxc6 {0-1 (60) Stefanova,A (2470)-Sarana,A (2649) Europe Echecs INT 2021}) 13. Ne5 {[%emt 1:13:47]} Bf5 {[%emt 0:00:28]} 14. Ndf3 {[%emt 0:00:00]} Ba3 {[%emt 0:03:40]} 15. Rc2 {[%emt 0:00:00]} Bxd3 {[%emt 0:08:40]} 16. Nxd3 {[%emt 0:00:00]} Ne4 {[%emt 0:00:11]} 17. Ng5 $2 {[%emt 0:00:00][%mdl 8192] [#] Loses the game.} (17. Qd1 $1 $11) 17... Nxd4 $1 $19 {[%emt 0:03:09][%mdl 512]} 18. cxd4 {[%emt 0:00:00] Hoping for Qe2.} Rxc2 {[%emt 0:00:16]} 19. Nxe4 {[%emt 0:00:00]} dxe4 {[%emt 0:00:18]} 20. Qxe4 {[%emt 0:00:00]} Qc6 {[%emt 0:01:02] Against Nc5} 21. Qe3 {[%emt 0:00:00]} f6 {[%emt 0:00:33]} 22. b4 {[%emt 0:00:00]} Qc4 {[%emt 0:03:48][%cal Oc2c3]} (22... Rxa2 $2 {too greedy.} 23. h3 $19) 23. Nc5 {[%emt 0:00:00]} (23. Qe4 $142) 23... Bxb4 {[%emt 0:01:38] [#] And now ...Bd2 would win.} 24. Nxb7 {[%emt 0:00:00]} Bd2 {[%emt 0:01:30]} 25. Qg3 {[%emt 0:00:00]} Rc1 {[%emt 0:00:23] Weighted Error Value: White=1.39/Black=0.13 (very precise)} ({Not} 25... Rxa2 26. Bxd2 Rxd2 27. Nd6 $15) 0-1

[Event "ITT 1st Parada Jamundi 2022"]
[Site "Jamundi Valle"]
[Date "2022.12.08"]
[Round "5.20"]
[White "Cortes Castro, Jhonny"]
[Black "Avella Munoz, Andrea"]
[Result "1-0"]
[ECO "B23"]
[WhiteElo "1954"]
[BlackElo "1472"]
[Annotator "TA"]
[PlyCount "55"]
[EventDate "2022.12.05"]
[EventType "swiss"]
[EventCountry "COL"]
[SourceTitle "playchess.com"]
[Source "ChessBase"]
[SourceQuality "1"]
[TimeControl "5400+30"]

{[%evp 10,55,25,0,0,0,0,0,43,-62,62,49,47,44,133,132,124,124,357,354,494,485,496,389,393,349,346,337,2083,572,582,580,565,550,477,421,416,-11,-4,-207,-218,-209,-230,-252,-40,-41,14,14]} 1. e4 {[%emt 1:31:00]} c5 {[%emt 1:31:00]} 2. f4 {[%emt 0:00:30]} d6 {[%emt 0:00:30]} 3. Nf3 {[%emt 0:00:30]} Nf6 {[%emt 0:00:30]} 4. Nc3 {[%emt 0:00:30]} Nc6 {[%emt 0:00:30]} 5. Bc4 {[%emt 0:00:30]} Bg4 {[%emt 0:00:30]} 6. h3 {[%emt 0:00:30]} Bxf3 {[%emt 0:00:30] B23: Closed Sicilian: Lines without g3.} 7. Qxf3 {[%emt 0:00:30]} Nd4 {[%emt 0:00:30][%csl LRc2,LRf3] Against d3} 8. Qd3 {[%emt 0:00:30] [#]} g6 $146 {[%emt 0:00:30]} ({Predecessor:} 8... e5 9. fxe5 dxe5 10. O-O Be7 11. Nd5 a6 12. c3 Nc6 13. Qf3 O-O 14. d3 b5 15. Nxf6+ Bxf6 {½-½ (26) Hencke,H (1674)-Reif,F (781) Playchess.com INT 2020}) 9. e5 {[%emt 0:00:30] Inhibits a6.} (9. Ne2 $14) 9... Nd7 {[%emt 0:00:30]} (9... dxe5 $1 $15 10. fxe5 Nd7) 10. exd6 $14 {[%emt 0:00:30]} exd6 {[%emt 0:00:30]} 11. O-O {[%emt 0:00:30] Threatens to win with Re1+.} Qh4 {[%emt 0:00:30] Against Re1+} (11... Bg7 $14) 12. Qe4+ {[%emt 0:00:30]} Qe7 {[%emt 0:00:30]} 13. Qxb7 {[%emt 0:00:30] White is more active.} Rb8 (13... Nb6 $16 14. Bb5+ Nxb5 15. Qc6+ Qd7 16. Qxb5 f5) 14. Qxa7 $18 {[%emt 0:00:30]} Nc6 {[%emt 0:01:00]} 15. Qc7 {[%emt 0:00:30]} Nb4 {[%emt 0:00:30]} 16. a3 {[%emt 0:00:30]} Nxc2 {[%emt 0:00:30]} 17. Bb5 {[%emt 0:00:30]} Rxb5 {[%emt 0:00:30]} 18. Nxb5 {[%emt 0:00:30]} Nxa1 $2 {[%emt 0:00:30] [#]} (18... Qe2 19. d3 (19. Nxd6+ Bxd6 20. Qxd6 Nxa1 $14) 19... Nxa1) 19. Nxd6+ $1 {[%emt 0:00:30][%mdl 512]} Qxd6 {[%emt 0:00:30]} 20. Re1+ {[%emt 0:00:30]} Qe6 {[%emt 0:00:30]} 21. Rxe6+ {[%emt 0:00:30]} fxe6 {[%emt 0:00:30]} 22. b4 {[%emt 0:00:30] Hoping for Bb2.} Bg7 {[%emt 0:00:30] Prevents Bb2.} 23. b5 $2 {[%emt 0:00:30]} ({White should try} 23. bxc5 $18 Bd4+ 24. Kh2 Nxc5 25. Bb2 $1 {[%mdl 512]} Bxb2 26. Qb8+ Ke7 27. Qxb2) 23... Nb3 {[%emt 0:00:30] aiming for ...Ke7.} 24. a4 $2 {[%emt 0:00:30]} Nxc1 $19 {[%emt 0:00:30] Pair of Knights!} 25. a5 {[%emt 0:00:30][%cal Ba4a5,Ba5a6,Ba6a7][%mdl 32]} Ke7 {[%emt 0:00:30]} 26. a6 {[#]} Nd3 $2 ({Better is} 26... Ne2+ $1 $19 27. Kh1 Ng3+ 28. Kh2 Nf1+ 29. Kh1 Nxd2) 27. a7 $1 $15 {[%emt 0:01:00]} Nb4 {[%emt 0:01:00]} ({Black should play} 27... Bd4+ $15 28. Kf1 c4) 28. Qb7 $1 {[%mdl 32768] What a bad dream for Black.   Weighted Error Value: White=0.63/Black=0.56. Loss on time!?} 1-0

[Event "ITT 1st Parada Jamundi 2022"]
[Site "Jamundi Valle"]
[Date "2022.12.08"]
[Round "5.21"]
[White "Pena Ramirez, Jatniel"]
[Black "Mena Ardila, Alexander"]
[Result "0-1"]
[ECO "C42"]
[WhiteElo "1201"]
[BlackElo "1956"]
[Annotator "TA"]
[PlyCount "82"]
[EventDate "2022.12.05"]
[EventType "swiss"]
[EventCountry "COL"]
[SourceTitle "playchess.com"]
[Source "ChessBase"]
[SourceQuality "1"]
[TimeControl "5400+30"]

{[%evp 10,82,0,-5,-11,-33,-39,-32,14,-15,-15,-16,-4,-37,-27,-120,-64,-182,-193,-206,-118,-120,-68,-52,-66,-62,-74,-76,-71,-86,-63,-100,-82,-185,-172,-207,-214,-566,-570,-533,-517,-495,-500,-816,-816,-787,-769,-5934,-5839,-5789,-5808,-5746,-5739,-5655,-5622,-5506,-2139,-2135,-1806,-29975,-29976,-29982,-29980,-29978,-29979,-29981,-29981,-29984,-29985,-29986,-29987,-29988,-29989,-29990,-29991]} 1. e4 {[%emt 0:00:08]} e5 {[%emt 0:00:01]} 2. Nf3 {[%emt 0:00:26]} Nf6 {[%emt 0:00:02]} 3. Bc4 {[%emt 0:03:01]} Nxe4 {[%emt 0:00:10]} 4. d3 {[%emt 0:00:50]} Nf6 {[%emt 0:01:58]} 5. Nxe5 {[%emt 0:00:48]} d5 {[%emt 0:00:15]} 6. Bb3 {[%emt 0:02:20]} Bd6 {[%emt 0:00:17] C42: Petroff Defence: 3 Nxe5 and unusual White 3rd moves.} 7. d4 {[%emt 0:04:03]} O-O {[%emt 0:00:42]} 8. O-O {[%emt 0:00:25]} Nbd7 {[%emt 0:02:53]} (8... c5 $15) 9. f4 {[%emt 0:03:04]} c6 {[%emt 0:01:52] [#]} 10. c3 $146 {[%emt 0:00:55]} ({Predecessor:} 10. c4 dxc4 11. Bxc4 Nd5 12. Nc3 N7f6 13. Qb3 Qb6 14. Qxb6 axb6 15. Bd2 Bf5 16. Rae1 Nxc3 17. Bxc3 {1-0 (49) Marcziter,D (2243)-Li,H (1985) Chess.com INT 2020}) 10... Ne4 {[%emt 0:04:36]} 11. Bc2 {[%emt 0:02:09]} Ndf6 {[%emt 0:06:07]} (11... Re8 {is more complex.} 12. Qf3 Qh4 13. c4 Nef6) 12. f5 {[%emt 0:05:40]} (12. Nd2 $11) 12... Qc7 {[%emt 0:01:07]} (12... Re8 $17 13. Nd2 Bxe5 14. Nxe4 Bxh2+ 15. Kxh2 Nxe4) 13. Bxe4 {[%emt 0:07:50]} (13. g4 $15) 13... Nxe4 $19 {[%emt 0:02:04]} ({Worse is} 13... dxe4 14. Nd2 $17) 14. Ng4 {[%emt 0:08:06]} f6 {[%emt 0:09:00]} (14... h5 $19 15. Nh6+ gxh6 16. Qxh5 f6 17. Bxh6 Qh7) 15. Nd2 $17 {[%emt 0:01:22]} h5 {[%emt 0:05:51] Black is more active.} ({Better is} 15... Re8 $17 {And now ...h5 would win.} 16. Nxe4 Rxe4) 16. Nxe4 $15 {[%emt 0:00:51]} dxe4 {[%emt 0:00:02]} 17. Ne3 {[%emt 0:01:01]} Bxh2+ {[%emt 0:00:17]} 18. Kh1 {[%emt 0:01:03] Black keeps a firm grip on the game.} h4 {[%emt 0:00:07]} 19. Qg4 {[%emt 0:02:19][%csl LRe4,LRh4]} Bg3 {[%emt 0:03:22]} 20. Qxe4 {[%emt 0:00:32]} Qf7 {[%emt 0:00:53]} 21. d5 {[%emt 0:01:39]} (21. Qd3 $17 {was necessary.}) 21... Bd7 {[%emt 0:01:26]} 22. Qc4 {[%emt 0:03:37]} Rae8 {[%emt 0:02:30]} 23. dxc6 $2 {[%emt 0:03:26]} (23. Qd3 {is a better chance.}) 23... Bxc6 $19 {[%emt 0:00:14] [#] Strongly threatening ...Qxc4. This pair of bishops is nice.} 24. Qxf7+ {[%emt 0:00:40]} Rxf7 {[%emt 0:00:16]} 25. Kg1 {[%emt 0:00:54]} Rfe7 {[%emt 0:02:03]} 26. Bd2 {[%emt 0:03:10]} (26. Rd1 $142) 26... Rxe3 {[%emt 0:00:31]} 27. Bxe3 {[%emt 0:00:42]} Rxe3 {[%emt 0:00:01]} 28. Rad1 {[%emt 0:02:15]} Re2 {[%emt 0:00:16][%csl LRb2,LRg2]} 29. Rf3 {[%emt 0:00:09]} Bxf3 {[%emt 0:00:58]} 30. gxf3 {[%emt 0:00:11]} Re1+ {[%emt 0:00:12]} 31. Rxe1 {[%emt 0:00:09]} Bxe1 {[%emt 0:00:01][%mdl 4096] Endgame KB-KP} 32. Kh2 {[%emt 0:00:12]} Kf7 {[%emt 0:00:11]} 33. c4 {[%emt 0:00:09]} Ke7 {[%emt 0:00:23]} 34. a3 {[%emt 0:00:27]} Kd6 {[%emt 0:00:08] Black mates.} 35. b4 {[%emt 0:00:55]} b6 {[%emt 0:00:57]} 36. Kh3 {[%emt 0:00:15]} Ke5 {[%emt 0:00:23]} 37. f4+ {[%emt 0:00:41]} Kd4 {[%emt 0:00:16]} 38. Kg4 {[%emt 0:00:20]} Kxc4 {[%emt 0:00:06]} 39. a4 {[%emt 0:00:24]} Kxb4 {[%emt 0:00:10]} 40. a5 {[%emt 0:00:07]} bxa5 {[%emt 0:00:11]} 41. Kh5 {[%emt 0:00:17]} h3 {[%emt 0:00:21] Weighted Error Value: White=0.76/Black=0.11 (very precise)} 0-1

[Event "ITT 1st Parada Jamundi 2022"]
[Site "Jamundi Valle"]
[Date "2022.12.08"]
[Round "5.22"]
[White "Franco, Jhonier"]
[Black "Montoya Altamirano, Juan Pablo"]
[Result "1-0"]
[ECO "C00"]
[WhiteElo "1900"]
[BlackElo "1151"]
[Annotator "TA"]
[PlyCount "59"]
[EventDate "2022.12.05"]
[EventType "swiss"]
[EventCountry "COL"]
[SourceTitle "playchess.com"]
[Source "ChessBase"]
[SourceQuality "1"]
[TimeControl "5400+30"]

{[%evp 9,58,-20,-10,-24,-15,-38,-18,-33,0,0,0,-43,-14,-18,-10,-26,-32,-18,-24,0,-14,-18,13,-8,0,-45,93,86,111,46,44,0,14,23,25,-147,-161,-421,29992,29993,29993,29994,29994,29995,29995,29995,29996,29997,29998,29999,29999]} 1. e4 {[%emt 0:00:05]} e6 {[%emt 0:00:35]} 2. Nc3 {[%emt 0:00:41]} d5 {[%emt 0:00:17]} 3. d3 {[%emt 0:00:07]} Nf6 {[%emt 0:00:50]} 4. Bd2 {[%emt 0:00:08]} Be7 {[%emt 0:00:50]} 5. f4 {[%emt 0:00:09]} O-O {[%emt 0:01:39]} 6. Nf3 {[%emt 0:04:06] C00: French: Unusual White 2nd moves.} c5 {[%emt 0:02:03]} 7. g3 {[%emt 0:00:50]} Nc6 {[%emt 0:01:46]} 8. Bg2 {[%emt 0:01:38] [#] The position is equal.} h6 $146 {[%emt 0:00:57]} (8... d4 $5 {[%cal Rd4c3]} 9. Ne2 b6 $11) ({Predecessor:} 8... b5 9. Ne5 Bb7 10. Nxc6 Bxc6 11. e5 Ne8 12. Qe2 Nc7 13. O-O f5 14. exf6 Bxf6 {½-½ (33) Swindells,J-Knott,S (2333) England 2011}) 9. O-O {[%emt 0:01:29]} Qb6 {[%emt 0:00:27]} 10. h3 {[%emt 0:01:02]} c4+ {[%emt 0:01:13]} (10... dxe4 {simplifies} 11. dxe4 Qxb2 12. a4 Qb6) 11. Kh2 {[%emt 0:01:30]} cxd3 {[%emt 0:00:32]} 12. cxd3 {[%emt 0:00:05]} Qxb2 {[%emt 0:01:20]} 13. Rb1 {[%emt 0:00:13]} Qa3 {[%emt 0:00:56]} 14. e5 {[%emt 0:01:15]} Nd7 {[%emt 0:01:38]} 15. Qe2 {[%emt 0:04:52]} a6 {[%emt 0:02:17]} 16. Rb3 {[%emt 0:05:28][%mdl 1024] White has compensation.} Qc5 {[%emt 0:02:51]} 17. Be3 {[%emt 0:01:22]} d4 {[%emt 0:02:09]} (17... Qa5 $1 $15 {stays ahead.}) 18. Ne4 $36 {[%emt 0:00:10][%mdl 2048] White has strong initiative.} Qd5 {[%emt 0:02:15] [#]} 19. Bg1 {[%emt 0:00:48] White is more active.} ({Better is} 19. Bf2 $1 $16) 19... Nc5 $14 {[%emt 0:01:10]} 20. Nfg5 {[%emt 0:06:28][%cal Oe4d6][%mdl 64] Hoping for Nd6!} Qd8 {[%emt 0:04:09][%cal Oc5b3] Against Nd6} 21. Nxc5 {[%emt 0:02:48]} Bxc5 {[%emt 0:00:47]} 22. Qh5 {[%emt 0:00:54]} hxg5 $17 {[%emt 0:02:44]} 23. fxg5 $2 {[%emt 0:01:23]} (23. Be4 {only move.} f5 24. exf6 Rxf6 25. Qh7+ Kf7 26. Qh5+ Kg8 27. Qh7+ Kf7 28. Qh5+ Kg8) 23... Be7 $4 {[%emt 1:08:35][%mdl 8192] [#]} ({And not} 23... Nxe5 24. g6 Nxg6 25. Qxc5 $17) (23... g6 $19 24. Qh4 Nxe5) 24. Be4 $1 {[%emt 0:07:46][%csl Ge4][%cal Rh5h7] White mates.} g6 {[%emt 0:00:00] [#]} 25. Bxg6 $1 {[%emt 0:00:22][%mdl 576] Demolition} fxg6 {[%emt 0:00:00]} 26. Qxg6+ {[%emt 0:00:07]} Kh8 {[%emt 0:00:00]} 27. Qh5+ {[%emt 0:00:30]} Kg8 {[%emt 0:00:00] [#]} 28. g6 $1 {[%emt 0:00:43][%csl Gg6][%cal Rh5h7][%mdl 64]} Rf5 {[%emt 0:00:00]} (28... Rf2+ 29. Rxf2) 29. Qh7+ {[%emt 0:00:09]} Kf8 {[%emt 0:00:00]} 30. Qh8# {[%emt 0:00:02] Weighted Error Value: White=0.31/Black=0.40} 1-0

[Event "ITT 1st Parada Jamundi 2022"]
[Site "Jamundi Valle"]
[Date "2022.12.08"]
[Round "5.23"]
[White "Rendon, Isabela"]
[Black "Estrada Velandia, Henry Andres"]
[Result "0-1"]
[ECO "D02"]
[WhiteElo "1139"]
[BlackElo "1883"]
[Annotator "NA RC COMBH"]
[PlyCount "92"]
[EventDate "2022.12.05"]
[EventType "swiss"]
[EventCountry "COL"]
[SourceTitle "playchess.com"]
[Source "ChessBase"]
[SourceQuality "1"]
[TimeControl "5400+30"]

1. d4 {[%emt 0:00:23]} d5 {[%emt 0:22:39]} 2. Nf3 {[%emt 0:00:53]} e6 {[%emt 0:01:48]} 3. e3 {[%emt 0:00:16]} Bd6 {[%emt 0:00:48]} 4. Bd3 {[%emt 0:00:12]} f5 {[%emt 0:00:55]} 5. Nbd2 {[%emt 0:01:21]} Ne7 {[%emt 0:03:11]} 6. Ne5 {[%emt 0:01:16]} O-O {[%emt 0:00:23]} 7. Ndf3 {[%emt 0:00:50]} Nd7 {[%emt 0:00:28]} 8. b3 {[%emt 0:00:32]} c6 {[%emt 0:04:09]} 9. O-O {[%emt 0:00:55]} Ng6 {[%emt 0:02:20]} 10. Bb2 {[%emt 0:02:34]} Qf6 {[%emt 0:01:05]} 11. Nxg6 {[%emt 0:02:44]} Qxg6 {[%emt 0:04:09]} 12. Ne5 {[%emt 0:01:40]} Qh6 {[%emt 0:01:16]} 13. f4 {[%emt 0:03:07]} Nf6 {[%emt 0:00:32]} 14. Rf3 {[%emt 0:00:48]} Ne4 {[%emt 0:02:34]} 15. Rh3 {[%emt 0:00:37]} Qf6 {[%emt 0:00:04]} 16. Qh5 {[%emt 0:01:12]} h6 {[%emt 0:00:13]} 17. Bxe4 {[%emt 0:01:06]} fxe4 {[%emt 0:06:22]} 18. Rg3 {[%emt 0:08:13]} Kh7 {[%emt 0:01:22]} 19. Rf1 {[%emt 0:09:05]} Bxe5 {[%emt 0:00:37]} 20. dxe5 {[%emt 0:00:11]} Qf7 {[%emt 0:00:59]} 21. Qh4 {[%emt 0:01:19]} b6 {[%emt 0:04:03]} 22. Ba3 {[%emt 0:00:30]} c5 {[%emt 0:01:27]} 23. b4 {[%emt 0:00:10]} Qc7 {[%emt 0:01:06]} 24. Qg4 {[%emt 0:02:01]} Rf7 {[%emt 0:08:53]} 25. Qg6+ {[%emt 0:00:39]} Kg8 {[%emt 0:00:38]} 26. Qxh6 {[%emt 0:02:17]} d4 {[%emt 0:05:31]} 27. Qg6 {[%emt 0:03:37]} dxe3 {[%emt 0:07:14]} 28. Qxe4 {[%emt 0:00:33]} e2 {[%emt 0:03:10]} 29. Qxe2 {[%emt 0:00:43]} a5 {[%emt 0:00:11]} 30. Qe4 {[%emt 0:00:36]} Bb7 {[%emt 0:00:21]} 31. Qg6 {[%emt 0:00:58]} axb4 {[%emt 0:00:11]} 32. Bc1 {[%emt 0:00:24]} Rxa2 {[%emt 0:00:44]} 33. Qxe6 {[%emt 0:00:35]} Rxc2 {[%emt 0:00:22]} 34. Qe8+ {[%emt 0:00:10]} Rf8 {[%emt 0:00:52]} 35. Qg6 {[%emt 0:00:36]} b3 {[%emt 0:03:41]} 36. Qe6+ {[%emt 0:00:18]} Qf7 {[%emt 0:00:21]} 37. Qxb6 {[%emt 0:00:34]} Qd5 {[%emt 0:00:25]} 38. Qg6 {[%emt 0:00:50]} Rf7 {[%emt 0:01:49]} 39. e6 {[%emt 0:00:34]} Re7 {[%emt 0:00:49]} 40. f5 {[%emt 0:00:50]} Rxc1 {[%emt 0:07:26]} 41. Rxc1 {[%emt 0:02:36]} Qd4+ {[%emt 0:00:08]} 42. Kh1 {[%emt 0:00:38]} b2 {[%emt 0:00:04]} 43. Re1 {[%emt 0:00:38]} Qb4 {[%emt 0:02:03]} 44. Rg1 {[%emt 0:02:48]} b1=Q {[%emt 0:00:14]} 45. Rh3 {[%emt 0:00:19]} Qxg1+ {[%emt 0:00:17]} 46. Kxg1 {[%emt 0:00:05]} Qe1# {[%emt 0:00:40]} 0-1

[Event "ITT 1st Parada Jamundi 2022"]
[Site "Jamundi Valle"]
[Date "2022.12.08"]
[Round "5.29"]
[White "Ferreira Morales, Jorge L"]
[Black "Idrobo, Juan Manuel"]
[Result "0-1"]
[ECO "B01"]
[WhiteElo "1870"]
[BlackElo "1809"]
[Annotator "NA RC COMBH"]
[PlyCount "46"]
[EventDate "2022.12.05"]
[EventType "swiss"]
[EventCountry "COL"]
[SourceTitle "playchess.com"]
[Source "ChessBase"]
[SourceQuality "1"]
[TimeControl "5400+30"]

1. e4 {[%emt 0:04:45]} d5 {[%emt 0:00:09]} 2. exd5 {[%emt 0:00:41]} Nf6 {[%emt 0:00:14]} 3. Bc4 {[%emt 0:00:25]} Nxd5 {[%emt 0:00:36]} 4. Qh5 {[%emt 0:00:52]} e6 {[%emt 1:31:31]} 5. Nf3 {[%emt 1:26:17]} Nd7 {[%emt 0:00:00]} 6. Ne5 {[%emt 0:00:00]} g6 {[%emt 0:00:00]} 7. Qe2 {[%emt 0:00:00]} Nf4 {[%emt 0:00:00]} 8. Qf3 {[%emt 0:00:00]} Nxg2+ {[%emt 0:00:00]} 9. Qxg2 {[%emt 0:00:00]} Nxe5 {[%emt 0:00:00]} 10. Bb3 {[%emt 0:00:00]} Bd7 {[%emt 0:00:00]} 11. d4 {[%emt 0:00:00]} Bc6 {[%emt 0:00:00]} 12. Ba4 {[%emt 0:00:00]} Qxd4 {[%emt 0:00:00]} 13. Bxc6+ {[%emt 0:00:00]} Nxc6 {[%emt 0:00:00]} 14. c3 {[%emt 0:00:00]} Qd5 {[%emt 0:00:00]} 15. f3 {[%emt 0:00:00]} O-O-O {[%emt 0:00:00]} 16. Be3 {[%emt 0:00:00]} Bc5 {[%emt 0:00:00]} 17. Bxc5 {[%emt 0:00:00]} Qxc5 {[%emt 0:00:00]} 18. Nd2 {[%emt 0:00:00]} Qe5+ {[%emt 0:00:00]} 19. Qe2 {[%emt 0:00:00]} Qxe2+ {[%emt 0:00:00]} 20. Kxe2 {[%emt 0:00:00]} Rd7 {[%emt 0:00:00]} 21. h4 {[%emt 0:00:00]} Rhd8 {[%emt 0:00:00]} 22. Ne4 {[%emt 0:00:00]} f5 {[%emt 0:00:00]} 23. Nf6 {[%emt 0:00:00]} Rf7 {[%emt 0:00:00]} 0-1